fUST/lending_fUST_20250426
["ID","MTS","AMOUNT","RATE_DAILY","PERIOD"]
[359053063,1745677833525,-314.11450802,0.00017532,2]
[359053064,1745677833535,-400.0,0.00017532,2]
[359053065,1745677833545,-400.0,0.00017532,2]
[359053066,1745677833554,-500.69,0.00017532,2]
[359053067,1745677833564,-400.0,0.00017532,2]
[359053068,1745677833574,-400.0,0.00017532,2]
[359053069,1745677833583,-400.0,0.00017532,2]
[359053070,1745677833593,-407.25,0.00017532,2]
[359053071,1745677833604,-825.64488063,0.000176,2]
[359053072,1745677833613,-400.0,0.00017803,2]
[359053073,1745677833623,-438.77,0.00017803,2]
[359053074,1745677833632,-452.67,0.00017803,2]
[359053075,1745677833642,-400.0,0.00017805,2]
[359053076,1745677833651,-451.1,0.00017805,2]
[359053077,1745677833661,-626.43,0.00017805,2]
[359053078,1745677833671,-1194.47,0.00017805,2]
[359053079,1745677833680,-400.0,0.00017805,2]
[359053080,1745677833690,-400.0,0.00017805,2]
[359053081,1745677833699,-400.0,0.00017805,2]
[359053082,1745677833708,-400.0,0.00017805,2]
[359053083,1745677833717,-414.51,0.00017805,2]
[359053084,1745677833727,-400.0,0.00017805,2]
[359053085,1745677833736,-400.0,0.00017805,2]
[359053086,1745677833745,-710.78,0.00017805,2]
[359053087,1745677833755,-468.25,0.00017805,2]
[359053088,1745677833764,-400.0,0.00017805,2]
[359053089,1745677833774,-400.0,0.00017805,2]
[359053090,1745677833785,-400.0,0.00017805,2]
[359053091,1745677833794,-400.0,0.00017806,2]
[359053092,1745677833804,-400.0,0.00017806,2]
[359053093,1745677833814,-400.0,0.00017806,2]
[359053094,1745677833824,-400.0,0.00017806,2]
[359053095,1745677833833,-400.0,0.00017806,2]
[359053096,1745677833843,-400.0,0.00017806,2]
[359053097,1745677833853,-400.0,0.00017806,2]
[359053098,1745677833863,-500.69,0.00017806,2]
[359053099,1745677833873,-400.0,0.00017806,2]
[359053100,1745677833883,-400.0,0.00017806,2]
[359053101,1745677833892,-400.0,0.00017806,2]
[359053102,1745677833902,-407.25,0.00017806,2]
[359053103,1745677833912,-400.0,0.00018077,2]
[359053104,1745677833921,-438.77,0.00018077,2]
[359053105,1745677833931,-452.67,0.00018077,2]
[359053106,1745677833940,-215.01362292,0.00018078,2]
[359053107,1745677833950,-400.0,0.00018079,2]
[359053108,1745677833960,-451.1,0.00018079,2]
[359053109,1745677833969,-626.43,0.00018079,2]
[359053110,1745677833979,-1194.47,0.00018079,2]
[359053111,1745677833989,-400.0,0.00018079,2]
[359053112,1745677833999,-400.0,0.00018079,2]
[359053113,1745677834008,-400.0,0.00018079,2]
[359053114,1745677834018,-400.0,0.00018079,2]
[359053115,1745677834027,-414.51,0.00018079,2]
[359053116,1745677834037,-400.0,0.00018079,2]
[359053117,1745677834047,-400.0,0.00018079,2]
[359053118,1745677834056,-710.78,0.00018079,2]
[359053119,1745677834066,-468.25,0.00018079,2]
[359053120,1745677834075,-400.0,0.00018079,2]
[359053121,1745677834085,-400.0,0.00018079,2]
[359053122,1745677834095,-400.0,0.00018079,2]
[359053123,1745677834104,-400.0,0.0001808,2]
[359053124,1745677834114,-400.0,0.0001808,2]
[359053125,1745677834124,-400.0,0.0001808,2]
[359053126,1745677834135,-400.0,0.0001808,2]
[359053127,1745677834145,-400.0,0.0001808,2]
[359053128,1745677834155,-400.0,0.0001808,2]
[359053129,1745677834165,-500.69,0.0001808,2]
[359053130,1745677834175,-400.0,0.0001808,2]
[359053131,1745677834184,-400.0,0.0001808,2]
[359053132,1745677834196,-400.0,0.0001808,2]
[359053133,1745677834209,-407.25,0.0001808,2]
[359053134,1745677834219,-167.5229786,0.00018253,2]
[359053135,1745677834229,-500.0,0.00018254,2]
[359053136,1745677834238,-500.0,0.00018254,2]
[359053137,1745677834249,-613.26947108,0.00018308,2]
[359053138,1745677834258,-500.0,0.00018308,2]
[359053139,1745677834268,-151.0,0.00018347,2]
[359053140,1745677834279,-207.4,0.00018347,2]
[359053141,1745677834289,-256.87715647,0.00018351,2]
[359053142,1745677834299,-438.77,0.00018351,2]
[359053143,1745677834308,-452.67,0.00018351,2]
[359053144,1745677834318,-400.0,0.00018353,2]
[359053145,1745677834328,-451.1,0.00018353,2]
[359053146,1745677834338,-626.43,0.00018353,2]
[359053147,1745677834348,-1194.47,0.00018353,2]
[359053148,1745677834358,-400.0,0.00018353,2]
[359053149,1745677834367,-400.0,0.00018353,2]
[359053150,1745677834377,-400.0,0.00018353,2]
[359053151,1745677834388,-400.0,0.00018353,2]
[359053152,1745677834398,-414.51,0.00018353,2]
[359053153,1745677834409,-400.0,0.00018353,2]
[359053154,1745677834419,-400.0,0.00018353,2]
[359053155,1745677834429,-710.78,0.00018353,2]
[359053156,1745677834440,-468.25,0.00018353,2]
[359053157,1745677834450,-400.0,0.00018353,2]
[359053158,1745677834460,-400.0,0.00018353,2]
[359053159,1745677834470,-400.0,0.00018353,2]
[359053160,1745677834479,-400.0,0.00018354,2]
[359053161,1745677834490,-400.0,0.00018354,2]
[359053162,1745677834499,-400.0,0.00018354,2]
[359053163,1745677834509,-400.0,0.00018354,2]
[359053164,1745677834519,-500.69,0.00018354,2]
[359053165,1745677834528,-400.0,0.00018354,2]
[359053166,1745677834539,-400.0,0.00018354,2]
[359053167,1745677834549,-400.0,0.00018354,2]
[359053168,1745677834559,-407.25,0.00018354,2]
[359053169,1745677834570,-500.0,0.0001836,2]
[359053170,1745677834579,-500.0,0.0001836,2]
[359053171,1745677834589,-500.0,0.0001836,2]
[359053172,1745677834599,-500.0,0.0001836,2]
[359053173,1745677834608,-500.0,0.0001836,2]
[359053174,1745677834618,-500.0,0.0001836,2]
[359053175,1745677834628,-500.0,0.0001836,2]
[359053176,1745677834638,-500.0,0.0001836,2]
[359053177,1745677834648,-500.0,0.0001836,2]
[359053178,1745677834658,-500.0,0.0001836,2]
[359053179,1745677834668,-420.0,0.0001855,2]
[359053180,1745677834678,-438.77,0.00018625,2]
[359053181,1745677834688,-452.67,0.00018625,2]
[359053182,1745677834698,-2024.61526108,0.00018626,2]
[359053183,1745677834708,-400.0,0.00018627,2]
[359053184,1745677834717,-451.1,0.00018627,2]
[359053185,1745677834727,-626.43,0.00018627,2]
[359053186,1745677834737,-1194.47,0.00018627,2]
[359053187,1745677834747,-400.0,0.00018627,2]
[359053188,1745677834757,-400.0,0.00018627,2]
[359053189,1745677834767,-400.0,0.00018627,2]
[359053190,1745677834778,-400.0,0.00018627,2]
[359053191,1745677834788,-414.51,0.00018627,2]
[359053192,1745677834797,-269.90489522,0.00018627,2]
[359053193,1745677834807,-400.0,0.00018627,2]
[359053194,1745677834967,-710.78,0.00018627,2]
[359053195,1745677834978,-468.25,0.00018627,2]
[359053196,1745677834988,-400.0,0.00018627,2]
[359053197,1745677834997,-400.0,0.00018627,2]
[359053198,1745677835007,-400.0,0.00018627,2]
[359053199,1745677835016,-400.0,0.00018628,2]
[359053200,1745677835026,-400.0,0.00018628,2]
[359053201,1745677835035,-400.0,0.00018628,2]
[359053202,1745677835045,-400.0,0.00018628,2]
[359053203,1745677835054,-500.69,0.00018628,2]
[359053204,1745677835064,-400.0,0.00018628,2]
[359053205,1745677835074,-400.0,0.00018628,2]
[359053206,1745677835084,-400.0,0.00018628,2]
[359053207,1745677835094,-407.25,0.00018628,2]
[359053208,1745677835104,-438.77,0.00018899,2]
[359053209,1745677835114,-452.67,0.00018899,2]
[359053210,1745677835124,-451.1,0.00018901,2]
[359053211,1745677835134,-626.43,0.00018901,2]
[359053212,1745677835144,-1194.47,0.00018901,2]
[359053213,1745677835154,-400.0,0.00018901,2]
[359053214,1745677835164,-400.0,0.00018901,2]
[359053215,1745677835173,-400.0,0.00018901,2]
[359053216,1745677835183,-400.0,0.00018901,2]
[359053217,1745677835193,-414.51,0.00018901,2]
[359053218,1745677835204,-400.0,0.00018901,2]
[359053219,1745677835215,-710.78,0.00018901,2]
[359053220,1745677835224,-468.25,0.00018901,2]
[359053221,1745677835234,-400.0,0.00018901,2]
[359053222,1745677835244,-400.0,0.00018901,2]
[359053223,1745677835254,-400.0,0.00018901,2]
[359053224,1745677835263,-400.0,0.00018902,2]
[359053225,1745677835273,-400.0,0.00018902,2]
[359053226,1745677835285,-400.0,0.00018902,2]
[359053227,1745677835295,-400.0,0.00018902,2]
[359053228,1745677835305,-500.69,0.00018902,2]
[359053229,1745677835314,-400.0,0.00018902,2]
[359053230,1745677835324,-400.0,0.00018902,2]
[359053231,1745677835333,-400.0,0.00018902,2]
[359053232,1745677835343,-407.25,0.00018902,2]
[359053233,1745677835353,-438.77,0.00019173,2]
[359053234,1745677835363,-452.67,0.00019173,2]
[359053235,1745677835373,-451.1,0.00019175,2]
[359053236,1745677835383,-626.43,0.00019175,2]
[359053237,1745677835393,-1194.47,0.00019175,2]
[359053238,1745677835402,-400.0,0.00019175,2]
[359053239,1745677835412,-400.0,0.00019175,2]
[359053240,1745677835422,-400.0,0.00019175,2]
[359053241,1745677835432,-524.1745816,0.00019175,2]
[359053242,1745677835442,-414.51,0.00019175,2]
[359053243,1745677835452,-400.0,0.00019175,2]
[359053244,1745677835461,-710.78,0.00019175,2]
[359053245,1745677835472,-468.25,0.00019175,2]
[359053246,1745677835482,-400.0,0.00019175,2]
[359053247,1745677835492,-194.61998967,0.00019175,2]
[359053248,1745677835502,-400.0,0.00019175,2]
[359053249,1745677835512,-400.0,0.00019176,2]
[359053250,1745677835521,-400.0,0.00019176,2]
[359053251,1745677835531,-400.0,0.00019176,2]
[359053252,1745677835540,-400.0,0.00019176,2]
[359053253,1745677835550,-500.69,0.00019176,2]
[359053254,1745677835560,-400.0,0.00019176,2]
[359053255,1745677835569,-400.0,0.00019176,2]
[359053256,1745677835579,-400.0,0.00019176,2]
[359053257,1745677835588,-407.25,0.00019176,2]
[359053258,1745677835598,-151.0,0.00019178,2]
[359053259,1745677835607,-300.0,0.00019178,2]
[359053260,1745677835617,-1663.37851694,0.00019205,5]
[359053261,1745677835626,-156.587,0.00019233,2]
[359053262,1745677835637,-162.380719,0.00019288,2]
[359053263,1745677835647,-160.0,0.00019289,3]
[359053264,1745677835657,-168.3888056,0.00019343,2]
[359053265,1745677835666,-174.61919141,0.00019398,2]
[359053266,1745677835676,-438.77,0.00019447,2]
[359053267,1745677835686,-452.67,0.00019447,2]
[359053268,1745677835696,-451.1,0.00019449,2]
[359053269,1745677835706,-626.43,0.00019449,2]
[359053270,1745677835716,-1194.47,0.00019449,2]
[359053271,1745677835728,-400.0,0.00019449,2]
[359053272,1745677835737,-400.0,0.00019449,2]
[359053273,1745677835747,-400.0,0.00019449,2]
[359053274,1745677835756,-414.51,0.00019449,2]
[359053275,1745677835765,-400.0,0.00019449,2]
[359053276,1745677835775,-710.78,0.00019449,2]
[359053277,1745677835785,-468.25,0.00019449,2]
[359053278,1745677835794,-486.88,0.00019449,2]
[359053279,1745677835804,-400.0,0.00019449,2]
[359053280,1745677835813,-400.0,0.0001945,2]
[359053281,1745677835823,-400.0,0.0001945,2]
[359053282,1745677835832,-400.0,0.0001945,2]
[359053283,1745677835842,-400.0,0.0001945,2]
[359053284,1745677835851,-500.69,0.0001945,2]
[359053285,1745677835860,-400.0,0.0001945,2]
[359053286,1745677835870,-400.0,0.0001945,2]
[359053287,1745677835879,-400.0,0.0001945,2]
[359053288,1745677835889,-407.25,0.0001945,2]
[359053289,1745677835900,-181.08010149,0.00019453,2]
[359053290,1745677835909,-167.52297857,0.00019469,2]
[359053291,1745677835919,-187.78006525,0.00019508,2]
[359053292,1745677835928,-194.72792766,0.00019563,2]
[359053293,1745677835938,-201.93286099,0.00019618,2]
[359053294,1745677835947,-209.40437684,0.00019673,2]
[359053295,1745677835957,-438.77,0.00019721,2]
[359053296,1745677835966,-452.67,0.00019721,2]
[359053297,1745677835975,-451.1,0.00019723,2]
[359053298,1745677835985,-626.43,0.00019723,2]
[359053299,1745677835994,-1194.47,0.00019723,2]
[359053300,1745677836004,-400.0,0.00019723,2]
[359053301,1745677836014,-400.0,0.00019723,2]
[359053302,1745677836024,-400.0,0.00019723,2]
[359053303,1745677836034,-414.51,0.00019723,2]
[359053304,1745677836043,-400.0,0.00019723,2]
[359053305,1745677836053,-710.78,0.00019723,2]
[359053306,1745677836062,-468.25,0.00019723,2]
[359053307,1745677836071,-400.0,0.00019723,2]
[359053308,1745677836080,-400.0,0.00019724,2]
[359053309,1745677836090,-400.0,0.00019724,2]
[359053310,1745677836099,-400.0,0.00019724,2]
[359053311,1745677836109,-400.0,0.00019724,2]
[359053312,1745677836118,-500.69,0.00019724,2]
[359053313,1745677836128,-400.0,0.00019724,2]
[359053314,1745677836138,-400.0,0.00019724,2]
[359053315,1745677836147,-400.0,0.00019724,2]
[359053316,1745677836157,-407.25,0.00019724,2]
[359053317,1745677836166,-217.15233878,0.00019728,2]
[359053318,1745677836176,-225.18697532,0.00019783,2]
[359053319,1745677836185,-160.0,0.00019806,4]
[359053320,1745677836194,-233.51889341,0.00019838,2]
[359053321,1745677836205,-242.15909246,0.00019893,2]
[359053322,1745677836216,-11739.01269979,0.000199,2]
[359053323,1745677836225,-251.11897888,0.00019948,2]
[359053324,1745677836235,-438.77,0.00019995,2]
[359053325,1745677836244,-452.67,0.00019995,2]
[359053326,1745677836255,-451.1,0.00019997,2]
[359053327,1745677836264,-626.43,0.00019997,2]
[359053328,1745677836277,-1194.47,0.00019997,2]
[359053329,1745677836288,-400.0,0.00019997,2]
[359053330,1745677836299,-400.0,0.00019997,2]
[359053331,1745677836310,-400.0,0.00019997,2]
[359053332,1745677836320,-414.51,0.00019997,2]
[359053333,1745677836329,-400.0,0.00019997,2]
[359053334,1745677836341,-710.78,0.00019997,2]
[359053335,1745677836352,-468.25,0.00019997,2]
[359053336,1745677836363,-400.0,0.00019997,2]
[359053337,1745677836374,-400.0,0.00019998,2]
[359053338,1745677836384,-400.0,0.00019998,2]
[359053339,1745677836393,-400.0,0.00019998,2]
[359053340,1745677836403,-400.0,0.00019998,2]
[359053341,1745677836413,-500.69,0.00019998,2]
[359053342,1745677836424,-400.0,0.00019998,2]
[359053343,1745677836435,-400.0,0.00019998,2]
[359053344,1745677836445,-400.0,0.00019998,2]
[359053345,1745677836455,-407.25,0.00019998,2]
[359053346,1745677836465,-180.106,0.0002,2]
[359053347,1745677836475,-199.999999,0.0002,2]
[359053348,1745677836485,-358.12720724,0.0002,2]
[359053349,1745677836495,-7676.15805207,0.0002,2]
[359053350,1745677836505,-1180.26855904,0.0002,2]
[359053351,1745677836515,-170.1571262,0.0002,2]
[359053352,1745677836525,-260.4103811,0.00020003,2]
[359053353,1745677836535,-270.0455652,0.00020058,2]
[359053354,1745677836545,-280.03725112,0.00020113,2]
[359053355,1745677836556,-290.39862941,0.00020168,2]
[359053356,1745677836565,-301.1433787,0.00020223,2]
[359053357,1745677836575,-587.0,0.00020261,2]
[359053358,1745677836585,-438.77,0.00020269,2]
[359053359,1745677836595,-452.67,0.00020269,2]
[359053360,1745677836605,-451.1,0.00020271,2]
[359053361,1745677836615,-626.43,0.00020271,2]
[359053362,1745677836625,-1194.47,0.00020271,2]
[359053363,1745677836636,-400.0,0.00020271,2]
[359053364,1745677836646,-400.0,0.00020271,2]
[359053365,1745677836655,-400.0,0.00020271,2]
[359053366,1745677836665,-414.51,0.00020271,2]
[359053367,1745677836674,-400.0,0.00020271,2]
[359053368,1745677836683,-710.78,0.00020271,2]
[359053369,1745677836693,-468.25,0.00020271,2]
[359053370,1745677836703,-400.0,0.00020271,2]
[359053371,1745677836715,-400.0,0.00020272,2]
[359053372,1745677836726,-242.27102279,0.00020272,2]
[359053373,1745677836737,-400.0,0.00020272,2]
[359053374,1745677836750,-400.0,0.00020272,2]
[359053375,1745677836760,-500.69,0.00020272,2]
[359053376,1745677836770,-400.0,0.00020272,2]
[359053377,1745677836782,-400.0,0.00020272,2]
[359053378,1745677836792,-400.0,0.00020272,2]
[359053379,1745677836803,-407.25,0.00020272,2]
[359053380,1745677836815,-160.0,0.00020323,5]
[359053381,1745677836826,-438.77,0.00020543,2]
[359053382,1745677836838,-452.67,0.00020543,2]
[359053383,1745677836849,-451.1,0.00020545,2]
[359053384,1745677836859,-626.43,0.00020545,2]
[359053385,1745677836869,-1194.47,0.00020545,2]
[359053386,1745677836880,-400.0,0.00020545,2]
[359053387,1745677836890,-400.0,0.00020545,2]
[359053388,1745677836900,-400.0,0.00020545,2]
[359053389,1745677836909,-414.51,0.00020545,2]
[359053390,1745677836919,-400.0,0.00020545,2]
[359053391,1745677836928,-710.78,0.00020545,2]
[359053392,1745677836938,-468.25,0.00020545,2]
[359053393,1745677836948,-400.0,0.00020545,2]
[359053394,1745677836957,-400.0,0.00020546,2]
[359053395,1745677836966,-400.0,0.00020546,2]
[359053396,1745677836975,-400.0,0.00020546,2]
[359053397,1745677836985,-500.69,0.00020546,2]
[359053398,1745677836995,-400.0,0.00020546,2]
[359053399,1745677837004,-400.0,0.00020546,2]
[359053400,1745677837015,-415.06145068,0.00020546,2]
[359053401,1745677837024,-407.25,0.00020546,2]
[359053402,1745677837034,-1641.92007507,0.00020583,2]
[359053403,1745677837044,-179.74835231,0.0002064,2]
[359053404,1745677837053,-167.52297857,0.00020684,2]
[359053405,1745677837062,-438.77,0.00020817,2]
[359053406,1745677837072,-452.67,0.00020817,2]
[359053407,1745677837081,-451.1,0.00020819,2]
[359053408,1745677837091,-626.43,0.00020819,2]
[359053409,1745677837102,-1194.47,0.00020819,2]
[359053410,1745677837113,-400.0,0.00020819,2]
[359053411,1745677837122,-400.0,0.00020819,2]
[359053412,1745677837132,-400.0,0.00020819,2]
[359053413,1745677837141,-414.51,0.00020819,2]
[359053414,1745677837151,-400.0,0.00020819,2]
[359053415,1745677837161,-710.78,0.00020819,2]
[359053416,1745677837170,-468.25,0.00020819,2]
[359053417,1745677837179,-400.0,0.00020819,2]
[359053418,1745677837189,-400.0,0.0002082,2]
[359053419,1745677837199,-400.0,0.0002082,2]
[359053420,1745677837212,-302.14146666,0.0002082,2]
[359053421,1745677837222,-500.69,0.0002082,2]
[359053422,1745677837231,-400.0,0.0002082,2]
[359053423,1745677837241,-400.0,0.0002082,2]
[359053424,1745677837253,-407.25,0.0002082,2]
[359053425,1745677837263,-600.0,0.00020822,2]
[359053426,1745677837273,-160.0,0.00020839,6]
[359053427,1745677837284,-300.92831777,0.00020845,2]
[359053428,1745677837294,-1800.0,0.00020972,2]
[359053429,1745677837304,-100000.0,0.0002099,2]
[359053430,1745677837313,-157.45,0.00021,2]
[359053431,1745677837322,-266.74208676,0.00021,2]
[359053432,1745677837335,-438.77,0.00021091,2]
[359053433,1745677837345,-452.67,0.00021091,2]
[359053434,1745677837355,-451.1,0.00021093,2]
[359053435,1745677837365,-626.43,0.00021093,2]
[359053436,1745677837375,-1194.47,0.00021093,2]
[359053437,1745677837385,-244.61913901,0.00021093,2]
[359053438,1745677837394,-397.23270655,0.00021093,2]
[359053439,1745677837404,-400.0,0.00021093,2]
[359053440,1745677837413,-160.89256402,0.00021093,2]
[359053441,1745677837434,-239.10743598,0.00021093,2]
[359053442,1745677837446,-400.0,0.00021093,2]
[359053443,1745677837468,-320.94839556,0.00021093,2]
[359053444,1745677837482,-93.56160444,0.00021093,2]
[359053445,1745677837492,-400.0,0.00021093,2]
[359053446,1745677837502,-710.78,0.00021093,2]
[359053447,1745677837512,-468.25,0.00021093,2]
[359053448,1745677837523,-400.0,0.00021093,2]
[359053449,1745677837533,-407.25,0.00021093,2]
[359053450,1745677837543,-400.0,0.00021094,2]
[359053451,1745677837555,-400.0,0.00021094,2]
[359053452,1745677837566,-500.69,0.00021094,2]
[359053453,1745677837576,-300.92831777,0.00021313,2]
[359053454,1745677837587,-160.0,0.00021356,7]
[359053455,1745677837598,-438.77,0.00021365,2]
[359053456,1745677837608,-452.67,0.00021365,2]
[359053457,1745677837618,-3153.84904709,0.00021366,2]
[359053458,1745677837635,-451.79522765,0.00021366,2]
[359053501,1745677838670,-694.2,0.00021366,2]
[359053504,1745677838682,-114823.06980526,0.00021366,2]
[359053509,1745677838692,-451.1,0.00021367,2]
[359053511,1745677838702,-626.43,0.00021367,2]
[359053512,1745677838712,-1194.47,0.00021367,2]
[359053515,1745677838722,-339.30940595,0.00021367,2]
[359053516,1745677838731,-400.0,0.00021367,2]
[359053518,1745677838741,-400.0,0.00021367,2]
[359053519,1745677838751,-414.51,0.00021367,2]
[359053521,1745677838760,-400.0,0.00021367,2]
[359053523,1745677838769,-710.78,0.00021367,2]
[359053525,1745677838779,-468.25,0.00021367,2]
[359053526,1745677838788,-400.0,0.00021367,2]
[359053527,1745677838798,-407.25,0.00021367,2]
[359053528,1745677838809,-400.0,0.00021368,2]
[359053529,1745677838819,-400.0,0.00021368,2]
[359053530,1745677838830,-500.69,0.00021368,2]
[359053531,1745677838841,-151.0,0.00021369,2]
[359053532,1745677838851,-151.0,0.00021369,2]
[359053533,1745677838861,-300.92831777,0.00021488,2]
[359053534,1745677838872,-438.77,0.00021639,2]
[359053535,1745677838887,-452.67,0.00021639,2]
[359053536,1745677838898,-451.1,0.00021641,2]
[359053537,1745677838910,-626.43,0.00021641,2]
[359053538,1745677838921,-1194.47,0.00021641,2]
[359053539,1745677838932,-400.0,0.00021641,2]
[359053540,1745677838942,-400.0,0.00021641,2]
[359053541,1745677838952,-414.51,0.00021641,2]
[359053542,1745677838963,-400.0,0.00021641,2]
[359053543,1745677838973,-710.78,0.00021641,2]
[359053544,1745677838983,-468.25,0.00021641,2]
[359053545,1745677838994,-400.0,0.00021641,2]
[359053547,1745677839005,-407.25,0.00021641,2]
[359053549,1745677839014,-400.0,0.00021642,2]
[359053551,1745677839024,-400.0,0.00021642,2]
[359053553,1745677839034,-500.69,0.00021642,2]
[359053555,1745677839043,-151.31843755,0.0002165,2]
[359053573,1745677839222,-230.7090679,0.00021693,2]
[359053575,1745677839232,-634.0,0.000217,2]
[359053577,1745677839242,-1156.8,0.00021847,15]
[359053579,1745677839254,-160.0,0.00021873,8]
[359053581,1745677839264,-167.52297857,0.000219,2]
[359053583,1745677839275,-12697.07275523,0.00021913,2]
[359053585,1745677839287,-438.77,0.00021913,2]
[359053587,1745677839296,-452.67,0.00021913,2]
[359053589,1745677839306,-451.1,0.00021915,2]
[359053591,1745677839315,-626.43,0.00021915,2]
[359053593,1745677839324,-1194.47,0.00021915,2]
[359053595,1745677839334,-400.0,0.00021915,2]
[359053597,1745677839343,-400.0,0.00021915,2]
[359053599,1745677839354,-414.51,0.00021915,2]
[359053602,1745677839366,-400.0,0.00021915,2]
[359053604,1745677839376,-710.78,0.00021915,2]
[359053606,1745677839386,-468.25,0.00021915,2]
[359053608,1745677839396,-400.0,0.00021915,2]
[359053610,1745677839407,-407.25,0.00021915,2]
[359053612,1745677839417,-400.0,0.00021916,2]
[359053614,1745677839427,-400.0,0.00021916,2]
[359053616,1745677839437,-500.69,0.00021916,2]
[359053618,1745677839449,-157.45,0.00021917,2]
[359053620,1745677839459,-899.33,0.00021917,2]
[359053622,1745677839469,-744.87,0.00021917,2]
[359053624,1745677839480,-744.87,0.00021917,2]
[359053626,1745677839489,-744.87,0.00021917,2]
[359053628,1745677839499,-744.87,0.00021917,2]
[359053630,1745677839511,-744.87,0.00021917,2]
[359053632,1745677839521,-744.87,0.00021917,2]
[359053635,1745677839531,-744.87,0.00021917,2]
[359053637,1745677839541,-744.87,0.00021917,2]
[359053639,1745677839550,-744.87,0.00021917,2]
[359053640,1745677839560,-744.87,0.00021917,2]
[359053642,1745677839570,-744.87,0.00021917,2]
[359053645,1745677839580,-744.87,0.00021917,2]
[359053647,1745677839590,-744.87,0.00021917,2]
[359053649,1745677839600,-744.87,0.00021917,2]
[359053651,1745677839610,-744.87,0.00021917,2]
[359053653,1745677839620,-744.87,0.00021917,2]
[359053655,1745677839629,-744.87,0.00021917,2]
[359053657,1745677839639,-744.87,0.00021917,2]
[359053659,1745677839649,-744.87,0.00021917,2]
[359053661,1745677839662,-744.87,0.00021917,2]
[359053663,1745677839672,-407.34,0.00021917,2]
[359053665,1745677839683,-407.34,0.00021917,2]
[359053667,1745677839692,-407.34,0.00021917,2]
[359053669,1745677839702,-407.34,0.00021917,2]
[359053671,1745677839713,-407.34,0.00021917,2]
[359053673,1745677839722,-407.34,0.00021917,2]
[359053675,1745677839732,-407.34,0.00021917,2]
[359053677,1745677839742,-407.34,0.00021917,2]
[359053679,1745677839751,-407.34,0.00021917,2]
[359053681,1745677839763,-407.34,0.00021917,2]
[359053683,1745677839773,-407.34,0.00021917,2]
[359053685,1745677839782,-407.34,0.00021917,2]
[359053687,1745677839792,-407.34,0.00021917,2]
[359053689,1745677839802,-407.34,0.00021917,2]
[359053691,1745677839812,-407.34,0.00021917,2]
[359053693,1745677839822,-407.34,0.00021917,2]
[359053695,1745677839831,-407.34,0.00021917,2]
[359053697,1745677839841,-500.0,0.00021917,2]
[359053700,1745677839852,-500.0,0.00021917,2]
[359053702,1745677839862,-500.0,0.00021917,2]
[359053703,1745677839872,-500.0,0.00021917,2]
[359053706,1745677839882,-500.0,0.00021917,2]
[359053707,1745677839892,-500.0,0.00021917,2]